fUSD/lending_fUSD_20240612
["ID","MTS","AMOUNT","RATE_DAILY","PERIOD"]
[329298340,1718223068166,-151.0,0.000299,7]
[329298341,1718223068190,-1204.63774,0.000299,7]
[329298342,1718223068206,-151.0,0.000299,7]
[329298343,1718223068225,-1204.63774,0.000299,7]
[329298344,1718223068239,-301.22802952,0.000299,7]
[329298345,1718223068254,-301.22802952,0.000299,7]
[329298346,1718223068285,-301.22802952,0.000299,7]
[329298347,1718223068298,-301.22802952,0.000299,7]
[329298348,1718223068313,-301.22802952,0.000299,7]
[329298349,1718223068326,-301.22802952,0.000299,7]
[329298350,1718223068344,-301.22802952,0.000299,7]
[329298351,1718223068359,-301.22802952,0.000299,7]
[329298352,1718223068371,-41.86912967,0.000299,7]
[329298353,1718223068403,-854.3,0.00027397,10]
[329298354,1718223068418,-259.35889985,0.000299,7]
[329298355,1718223068433,-301.22802952,0.000299,7]
[329298356,1718223068446,-301.22802952,0.000299,7]
[329298357,1718223068460,-291.51348111,0.000299,7]
[329298358,1718223068519,-9.71454841,0.000299,7]
[329298359,1718223068539,-301.22802952,0.000299,7]
[329298360,1718223068551,-301.22802952,0.000299,7]
[329298361,1718223068562,-301.22802952,0.000299,7]
[329298362,1718223068577,-301.22802952,0.000299,7]
[329298363,1718223068589,-301.22802952,0.000299,7]
[329298364,1718223068610,-301.22802952,0.000299,7]
[329298365,1718223068623,-301.22802952,0.000299,7]
[329298366,1718223068633,-301.72,0.000299,7]
[329298367,1718223068649,-1204.98711809,0.000299,7]
[329298368,1718223068659,-1204.98711809,0.000299,7]
[329298369,1718223068669,-1204.98711809,0.000299,7]
[329298370,1718223068680,-1204.98711809,0.000299,7]
[329298371,1718223068690,-1204.98711809,0.000299,7]
[329298372,1718223068701,-1204.98711809,0.000299,7]
[329298373,1718223068713,-1204.98711809,0.000299,7]
[329298374,1718223068725,-1204.98711809,0.000299,7]
[329298375,1718223068736,-1204.98711809,0.000299,7]
[329298376,1718223068749,-195.08518214,0.000299,7]
[329298377,1718223068766,-1009.90193595,0.000299,7]
[329298378,1718223068781,-1204.98711809,0.000299,7]
[329298379,1718223068796,-1204.98711809,0.000299,7]
[329298380,1718223068842,-1204.98711809,0.000299,7]
[329298381,1718223068856,-1204.98711809,0.000299,7]
[329298382,1718223068868,-1204.98711809,0.000299,7]
[329298383,1718223068880,-1204.98711809,0.000299,7]
[329298384,1718223068893,-1204.98711809,0.000299,7]
[329298385,1718223068908,-1204.98711809,0.000299,7]
[329298386,1718223068925,-1204.98711809,0.000299,7]
[329298387,1718223068937,-1205.48,0.000299,7]
[329298388,1718223068950,-325.63068907,0.000299,2]
[329298389,1718223068961,-150.0,0.000299,6]
[329298390,1718223068973,-216.695606,0.000299,7]
[329298391,1718223068985,-5922.22245091,0.000299,2]
[329298392,1718223069001,-266.560655,0.000299,7]
[329298393,1718223069013,-266.560655,0.000299,7]
[329298394,1718223069028,-152.36544372,0.000299,15]
[329298395,1718223069042,-571.717358,0.000299,2]
[329298396,1718223069057,-150.0,0.00029935,2]
[329298397,1718223069073,-10675.66330047,0.00029968,21]
[329298398,1718223069089,-151.0,0.00029968,7]
[329298399,1718223069102,-151.0,0.00029968,7]
[329298400,1718223069115,-151.0,0.00029968,7]
[329298401,1718223069131,-151.0,0.00029968,7]
[329298402,1718223069146,-151.0,0.00029968,7]
[329298403,1718223069157,-151.0,0.00029968,7]
[329298404,1718223069192,-151.0,0.00029968,7]
[329298405,1718223069212,-151.0,0.00029968,7]
[329298406,1718223069239,-151.0,0.00029968,7]
[329298407,1718223069260,-151.0,0.00029968,7]
[329298408,1718223069273,-151.0,0.00029968,7]
[329298409,1718223069293,-151.0,0.00029968,7]
[329298410,1718223069324,-500.0,0.00029978,2]
[329298411,1718223069335,-151.0,0.00029979,7]
[329298412,1718223069348,-151.0,0.00029979,7]
[329298413,1718223069371,-197.5838,0.00029979,7]
[329298414,1718223069394,-151.0,0.00029979,7]
[329298415,1718223069414,-151.0,0.00029979,7]
[329298416,1718223069440,-151.0,0.00029979,7]
[329298417,1718223069461,-151.0,0.00029979,7]
[329298418,1718223069473,-151.0,0.00029979,7]
[329298419,1718223069501,-151.0,0.00029979,7]
[329298420,1718223069520,-27784.63404306,0.00029979,2]
[329298421,1718223069601,-2495.58714316,0.00029979,2]
[329298422,1718223069649,-6761.96522083,0.00029979,2]
[329298423,1718223069687,-5450.45928105,0.00029979,2]
[329298424,1718223069712,-36512.2985827,0.00029979,2]
[329298425,1718223069751,-30531.9514773,0.00029979,2]
[329298426,1718223069765,-24551.604372,0.00029979,2]
[329298427,1718223069790,-18571.2572666,0.00029979,2]
[329298428,1718223069806,-1204.63774,0.00029979,7]
[329298429,1718223069836,-151.0,0.00029979,7]
[329298430,1718223069854,-1204.63774,0.00029979,7]
[329298431,1718223069876,-3527.8709004,0.00029979,2]
[329298432,1718223069889,-3031.3639829,0.00029979,2]
[329298433,1718223069902,-2534.8570654,0.00029979,2]
[329298434,1718223069916,-2038.3501479,0.00029979,2]
[329298435,1718223069927,-1541.8432303,0.00029979,2]
[329298436,1718223069943,-266.560655,0.00029979,7]
[329298437,1718223069968,-266.560655,0.00029979,7]
[329298438,1718223069988,-3655.06096439,0.00029979,2]
[329298439,1718223070032,-156.37779948,0.00023983,2]
[329298440,1718223070053,-1129.82615388,0.00029979,2]
[329298441,1718223070098,-1535.76062658,0.00029979,2]
[329298442,1718223297010,450.23242123,0.00017242,30]
[329298471,1718224233903,-195.86472205,0.00017111,2]
[329298472,1718224233922,-155.0,0.00017111,2]
[329298473,1718224233935,-3101.77582154,0.00017112,2]
[329298474,1718224233947,-334.35218342,0.00017112,2]
[329298475,1718224233959,-1188.74785442,0.00017112,2]
[329298476,1718224234110,-992.484,0.00017112,2]
[329298477,1718224234344,-188.59683519,0.00017112,2]
[329298478,1718224234387,-546.04285463,0.00017112,2]
[329298479,1718224234400,-338.65785328,0.00017113,2]
[329298480,1718224234415,-155.0,0.00017113,2]
[329298481,1718224234426,-1068.08547647,0.00017113,2]
[329298482,1718224234437,-263.93289625,0.00017114,2]
[329298483,1718224234448,-166.73451123,0.00017114,2]
[329298484,1718224234459,-407.76106627,0.00017114,2]
[329298485,1718224234472,-155.0,0.00017114,2]
[329298486,1718224234493,-449.12500109,0.00017114,2]
[329298487,1718224234505,-155.0,0.00017115,2]
[329298488,1718224234533,-155.0,0.00017115,2]
[329298489,1718224234553,-241.72145719,0.00017115,2]
[329298490,1718224234565,-743.55039925,0.00017116,2]
[329298491,1718224234576,-482.16268263,0.00017116,2]
[329298492,1718224234612,-155.0,0.00017116,2]
[329298493,1718224234628,-155.0,0.00017116,2]
[329298494,1718224234660,-792.73133039,0.00017116,2]
[329298495,1718224234677,-150.0,0.00017116,2]
[329298496,1718224234696,-150.0,0.00017116,2]
[329298497,1718224234740,-659.27820915,0.00017117,2]
[329298498,1718224234752,-155.0,0.00017117,2]
[329298499,1718224234763,-155.0,0.00017117,2]
[329298500,1718224234799,-1277.65573434,0.00017117,2]
[329298501,1718224234812,-155.0,0.00017118,2]
[329298502,1718224234823,-267.40800567,0.00017118,2]
[329298503,1718224234849,-10541.97987025,0.00017119,2]
[329298504,1718224234859,-8424.06422309,0.00017119,2]
[329298505,1718224234889,-17511.04,0.00017121,2]
[329298506,1718224234900,-2000.54181067,0.00017126,2]
[329298507,1718224234913,-848.18,0.00017147,2]
[329298508,1718224234926,-499.99,0.00017147,2]
[329298509,1718224234938,-1273.62,0.00017148,6]
[329298510,1718224234948,-1383.53,0.00017148,2]
[329298511,1718224234959,-4581.73,0.00017158,2]
[329298512,1718224234970,-879.73,0.00017158,2]
[329298513,1718224234988,-1954.65,0.00017159,2]
[329298514,1718224235000,-4983.69587637,0.00017242,2]
[329298516,1718224235048,-155.0,0.00017111,2]
[329298518,1718224235076,-15293.00140058,0.00017242,2]
[329298520,1718224235087,-210.0,0.00018828,2]
[329298521,1718224235100,-275.22,0.00021277,2]
[329298523,1718224235114,-1487.25347968,0.00021719,2]
[329298525,1718224235127,-429.8742519,0.00021719,2]
[329298527,1718224235145,-21972.87226842,0.00021719,2]
[329298530,1718224235181,-500.0,0.00022,2]
[329298532,1718224235192,-201.35,0.00022554,2]
[329298534,1718224235238,-250.0,0.00022736,2]
[329298537,1718224235260,-150.0,0.00022793,2]
[329298539,1718224235274,-1337.76,0.00022992,2]
[329298541,1718224235286,-500.0,0.00023,2]
[329298543,1718224235311,-250.0,0.00023222,2]
[329298545,1718224235323,-250.0,0.00023272,2]
[329298547,1718224235350,-1045.16,0.00023279,2]
[329298549,1718224235360,-197.92,0.00023287,2]
[329298551,1718224235374,-275.22,0.00023541,2]
[329298553,1718224235396,-3204.0,0.000238,2]
[329298555,1718224235410,-599.0,0.000238,2]
[329298559,1718224235444,-1631.9008,0.00023981,2]
[329298561,1718224235463,-500.0,0.00024,2]
[329298564,1718224235474,-248.80351593,0.00024081,2]
[329298567,1718224235490,-500.0,0.00024081,2]
[329298569,1718224235503,-500.0,0.00024081,2]
[329298571,1718224235519,-500.0,0.00024081,2]
[329298572,1718224235531,-500.0,0.00024081,2]
[329298573,1718224235558,-504.24453564,0.00024083,2]
[329298574,1718224235571,-500.0,0.00024083,2]
[329298576,1718224235582,-505.20135249,0.00024083,2]
[329298578,1718224235596,-502.62221172,0.00024083,2]
[329298580,1718224235614,-508.99341974,0.00024083,2]
[329298582,1718224235626,-272.40853209,0.00024083,2]
[329298584,1718224235639,-500.0,0.00024083,2]
[329298586,1718224235653,-504.66011411,0.00024083,2]
[329298588,1718224235668,-503.10492019,0.00024083,2]
[329298590,1718224235679,-506.5047524,0.00024083,2]
[329298592,1718224235691,-500.0,0.00024083,2]
[329298594,1718224235703,-505.24652582,0.00024083,2]
[329298596,1718224235714,-500.0,0.00024083,2]
[329298598,1718224235727,-500.0,0.00024083,2]
[329298600,1718224235741,-516.05915166,0.00024083,2]
[329298601,1718224235759,-505.06403067,0.00024083,2]
[329298604,1718224235773,-502.38222016,0.00024083,2]
[329298606,1718224235799,-503.88672779,0.00024083,2]
[329298608,1718224235820,-502.77345469,0.00024083,2]
[329298609,1718224235834,-396.04063962,0.00024083,2]
[329298611,1718224235847,-565.95910084,0.00024083,2]
[329298613,1718224235861,-501.82662541,0.00024083,2]
[329298615,1718224235873,-513.06544441,0.00024083,2]
[329298617,1718224235891,-504.68709903,0.00024083,2]
[329298619,1718224235902,-571.6906322,0.00024083,2]
[329298621,1718224235915,-498.02181518,0.00024083,2]
[329298623,1718224235929,-176.528973,0.00024083,2]
[329298624,1718224235953,-500.0,0.00024083,2]
[329298627,1718224235980,-500.0,0.00024083,2]
[329298629,1718224235995,-571.67743625,0.00024083,2]
[329298631,1718224236011,-498.14583729,0.00024083,2]
[329298632,1718224236025,-509.52630324,0.00024083,2]
[329298634,1718224236041,-500.0,0.00024083,2]
[329298636,1718224236057,-509.97841911,0.00024083,2]
[329298639,1718224236085,-500.0,0.00024083,2]
[329298641,1718224236096,-508.66325207,0.00024083,2]
[329298644,1718224236128,-500.0,0.00024083,2]
[329298645,1718224236142,-500.0,0.00024083,2]
[329298650,1718224236198,-500.0,0.00024083,2]
[329298652,1718224236211,-500.0,0.00024083,2]
[329298654,1718224236228,-500.0,0.00024083,2]
[329298656,1718224236246,-500.0,0.00024083,2]
[329298658,1718224236263,-507.27527347,0.00024083,2]
[329298660,1718224236274,-509.44516491,0.00024083,2]
[329298662,1718224236295,-500.0,0.00024083,2]
[329298664,1718224236335,-500.0,0.00024083,2]
[329298666,1718224236346,-500.0,0.00024083,2]
[329298668,1718224236359,-500.0,0.00024083,2]
[329298671,1718224236392,-500.0,0.00024083,2]
[329298673,1718224236403,-304.33290247,0.00024083,2]
[329298675,1718224236414,-500.0,0.00024218,2]
[329298676,1718224236426,-500.0,0.00024218,2]
[329298678,1718224236437,-644.6952051,0.00024355,2]
[329298679,1718224236448,-500.0,0.00024355,2]
[329298681,1718224236463,-349.13,0.00024384,2]
[329298683,1718224236494,-165.8,0.00024415,2]
[329298685,1718224236509,-159.59,0.00024427,2]
[329298686,1718224236527,-500.0,0.00024492,2]
[329298688,1718224236564,-244.31153018,0.00024629,2]
[329298690,1718224236581,-500.0,0.00025,2]
[329298692,1718224236604,-225.36,0.00025164,30]
[329298694,1718224236617,-172.43,0.00025313,2]
[329298696,1718224236633,-166.91297384,0.00025582,2]
[329298698,1718224236650,-153.50637495,0.00025596,2]
[329298699,1718224236667,-601.44,0.00025609,2]
[329298701,1718224236678,-275.22,0.00025805,2]
[329298704,1718224236708,-500.0,0.00026,2]
[329298706,1718224236726,-1045.16,0.00026019,2]
[329298708,1718224236737,-166.5,0.0002621,2]
[329298710,1718224236755,-198.33,0.00026268,2]
[329298712,1718224236782,-302.24547736,0.00026998,2]
[329298714,1718224236795,-25182.76490895,0.00026999,5]
[329298715,1718224236812,-17804.38443806,0.00027,2]
[329298716,1718224236836,-500.0,0.00027,2]
[329298717,1718224236848,-200.0,0.00027,2]
[329298718,1718224236859,-2013.69130441,0.000272,2]
[329298719,1718224236870,-154.54985129,0.0002739,2]
[329298720,1718224236882,-150.0,0.00027397,2]
[329298721,1718224236895,-201.594972,0.000278,2]
[329298722,1718224236908,-152.0,0.00027879,3]
[329298723,1718224236921,-2000.0,0.000279,2]
[329298724,1718224236944,-973.0,0.000279,2]
[329298725,1718224236958,-224.98486477,0.00028,2]
[329298726,1718224236978,-500.0,0.00028,2]
[329298727,1718224236989,-4708.31978524,0.00028,15]
[329298728,1718224237005,-469.26225557,0.00028002,2]
[329298729,1718224237024,-162.22943552,0.00028003,2]
[329298730,1718224237036,-275.22,0.00028069,2]
[329298731,1718224237053,-150.0,0.00028118,2]
[329298732,1718224237065,-154.5498513,0.00028462,2]
[329298733,1718224237088,-158.53620513,0.00028498,7]
[329298734,1718224237104,-3000.0,0.000285,2]
[329298735,1718224237116,-1045.16,0.00028758,2]
[329298736,1718224237140,-601.44,0.0002881,2]
[329298737,1718224237155,-150.0,0.00028839,2]
[329298738,1718224237191,-4273.80145859,0.00028898,2]
[329298739,1718224237202,-150.0,0.00028997,2]
[329298740,1718224237217,-358.55361979,0.00028998,2]
[329298741,1718224237240,-538.21142,0.00028998,2]
[329298742,1718224237270,-446.99480679,0.00028998,2]
[329298743,1718224237285,-500.0,0.00028998,2]
[329298744,1718224237303,-423.09033834,0.00028998,2]
[329298745,1718224237407,-609.2,0.00028998,2]
[329298746,1718224237421,-500.0,0.00028998,2]
[329298747,1718224237435,-500.0,0.00028998,2]
[329298748,1718224237465,-307.10916232,0.00028998,2]
[329298749,1718224237486,-500.0,0.00028998,2]
[329298750,1718224237512,-500.0,0.00028998,2]
[329298751,1718224237522,-500.0,0.00028998,2]
[329298752,1718224237533,-500.0,0.00028998,2]
[329298753,1718224237553,-500.0,0.00028998,2]
[329298754,1718224237570,-500.0,0.00028998,2]
[329298755,1718224237581,-500.0,0.00028998,2]
[329298756,1718224237592,-500.0,0.00028998,2]
[329298757,1718224237611,-500.0,0.00028998,2]
[329298758,1718224237624,-500.0,0.00028998,2]
[329298759,1718224237635,-500.0,0.00028998,2]
[329298760,1718224237649,-500.0,0.00028998,2]
[329298761,1718224237660,-500.0,0.00028998,2]
[329298762,1718224237671,-41567.8975699,0.00028999,2]
[329298763,1718224237682,-500.0,0.00028999,2]
[329298764,1718224237694,-549.90998,0.00028999,2]
[329298765,1718224237704,-500.0,0.00028999,2]
[329298766,1718224237715,-500.0,0.00028999,2]
[329298767,1718224237725,-191.71,0.00028999,2]
[329298768,1718224237739,-500.0,0.00028999,2]
[329298769,1718224237750,-500.0,0.00028999,2]
[329298770,1718224237762,-500.0,0.00028999,2]
[329298771,1718224237772,-500.0,0.00028999,2]
[329298772,1718224237783,-497.38960213,0.00028999,2]
[329298773,1718224237796,-500.0,0.00028999,2]
[329298774,1718224237807,-500.0,0.00028999,2]
[329298775,1718224237817,-500.0,0.00028999,2]
[329298776,1718224237837,-500.0,0.00028999,2]
[329298777,1718224237849,-500.0,0.00028999,2]
[329298778,1718224237860,-500.0,0.00028999,2]
[329298779,1718224237875,-500.0,0.00028999,2]
[329298780,1718224237887,-500.0,0.00028999,2]
[329298781,1718224237897,-500.0,0.00028999,2]
[329298782,1718224237910,-520.06,0.00028999,2]
[329298783,1718224237928,-500.0,0.00028999,2]
[329298784,1718224237949,-500.0,0.00028999,2]
[329298785,1718224237962,-500.0,0.00028999,2]
[329298786,1718224237974,-500.0,0.00028999,2]
[329298787,1718224237986,-500.0,0.00028999,2]
[329298788,1718224238002,-500.0,0.00028999,2]
[329298789,1718224238020,-500.0,0.00028999,2]
[329298790,1718224238031,-411.81624809,0.00028999,2]
[329298791,1718224238045,-201.28,0.00028999,2]
[329298792,1718224238080,-573.0198713,0.00028999,2]
[329298793,1718224238104,-566.19,0.00028999,2]
[329298796,1718224238166,-500.0,0.00028999,2]
[329298798,1718224238197,-556.71525186,0.00028999,2]
[329298800,1718224238229,-500.0,0.00028999,2]
[329298802,1718224238259,-500.0,0.00028999,2]
[329298803,1718224238298,-500.0,0.00028999,2]
[329298804,1718224238308,-500.0,0.00028999,2]
[329298807,1718224238320,-500.0,0.00028999,2]
[329298809,1718224238331,-500.0,0.00028999,2]
[329298811,1718224238342,-500.0,0.00028999,2]
[329298813,1718224238356,-500.0,0.00028999,2]
[329298815,1718224238374,-500.0,0.00028999,2]
[329298816,1718224238400,-500.0,0.00028999,2]
[329298817,1718224238417,-500.0,0.00028999,2]
[329298818,1718224238430,-500.0,0.00028999,2]
[329298819,1718224238442,-500.0,0.00028999,2]
[329298820,1718224238454,-500.0,0.00028999,2]
[329298821,1718224238470,-500.0,0.00028999,2]
[329298822,1718224238483,-500.0,0.00028999,2]
[329298823,1718224238508,-548.49978794,0.00028999,2]
[329298824,1718224238540,-500.0,0.00028999,2]
[329298825,1718224238561,-500.0,0.00028999,2]
[329298826,1718224238574,-500.0,0.00028999,2]
[329298827,1718224238585,-500.0,0.00028999,2]
[329298828,1718224238597,-500.0,0.00028999,2]
[329298829,1718224238619,-500.0,0.00028999,2]
[329298830,1718224238660,-500.0,0.00028999,2]
[329298831,1718224238692,-40002.50109651,0.00029,2]
[329298832,1718224238735,-500.0,0.00029,2]
[329298833,1718224238746,-4173.19345114,0.00029,2]
[329298834,1718224238762,-714.70400096,0.00029,2]
[329298835,1718224238777,-1489.8087426,0.00029098,2]
[329298836,1718224238788,-500.0,0.00029135,2]
[329298837,1718224238806,-500.0,0.00029135,2]
[329298838,1718224238827,-500.0,0.00029135,2]
[329298839,1718224238847,-500.0,0.00029135,2]
[329298840,1718224238865,-561.9,0.00029135,2]
[329298841,1718224238882,-500.0,0.00029135,2]
[329298842,1718224238893,-500.0,0.00029135,2]
[329298843,1718224238906,-500.0,0.00029135,2]
[329298844,1718224238919,-500.0,0.00029136,2]
[329298845,1718224238932,-500.0,0.00029136,2]
[329298846,1718224238945,-175.13051873,0.00029136,2]
[329298847,1718224238984,-150.0,0.00029178,2]
[329298848,1718224238997,-500.0,0.00029272,2]
[329298849,1718224239015,-470.71,0.00029272,2]
[329298850,1718224239045,-581.86089214,0.00029272,2]
[329298851,1718224239081,-291.30940919,0.00029272,2]
[329298852,1718224239135,-500.0,0.00029272,2]
[329298853,1718224239159,-500.0,0.00029272,2]
[329298854,1718224239211,-500.0,0.00029273,2]
[329298855,1718224239235,-500.0,0.00029273,2]
[329298856,1718224239273,-160.10307844,0.000293,2]
[329298857,1718224239288,-1000.0,0.00029356,30]
[329298858,1718224239316,-500.0,0.00029356,2]
[329298859,1718224239374,-500.0,0.00029409,2]
[329298860,1718224239387,-500.0,0.00029409,2]
[329298861,1718224239412,-500.0,0.00029409,2]
[329298862,1718224239422,-500.0,0.0002941,2]
[329298863,1718224239433,-188.38590625,0.0002941,2]
[329298864,1718224239456,-160.10307844,0.000295,2]
[329298865,1718224239514,-500.0,0.00029546,2]
[329298866,1718224239527,-664.67,0.0002955,2]
[329298867,1718224239542,-1499.34,0.00029553,2]
[329298868,1718224239566,-150.0,0.0002956,2]
[329298869,1718224239582,-429.0,0.00029637,5]
[329298870,1718224239600,-506.74586923,0.00029679,2]
[329298871,1718224239622,-150.32777,0.00029679,2]
[329298872,1718224239645,-24030.40110865,0.0002968,2]
[329298873,1718224239658,-500.0,0.00029683,2]
[329298874,1718224239669,-160.10307844,0.000297,2]
[329298875,1718224239682,-152.0,0.00029726,4]
[329298876,1718224239704,-388.05579716,0.00029798,2]
[329298877,1718224239716,-11866.842589,0.000298,2]
[329298878,1718224239756,-200.0,0.000298,2]
[329298879,1718224239785,-382.84586015,0.00029803,2]
[329298880,1718224239803,-150.0,0.0002982,2]
[329298881,1718224239822,-500.0,0.0002982,2]
[329298882,1718224239834,-220.92,0.00029826,2]
[329298883,1718224239848,-412.75360643,0.0002984,2]
[329298884,1718224239861,-305.0,0.000299,2]
[329298885,1718224239885,-5959.8442,0.000299,2]
[329298886,1718224239899,-172.62730068,0.000299,2]
[329298887,1718224239913,-14021.15367498,0.000299,2]
[329298888,1718224239937,-160.10307844,0.000299,2]
[329298889,1718224239953,-150.0,0.000299,6]
[329298890,1718224239972,-150.0,0.000299,6]
[329298891,1718224239989,-294.93,0.00029957,2]
[329298892,1718224240014,-1413.75176323,0.00029971,2]
[329298893,1718224240029,-4053.2724641,0.00029973,2]
[329298894,1718224240047,-922.3936285,0.00029973,2]
[329298895,1718224240060,-4123.0542764,0.00029973,2]
[329298896,1718224240073,-204.91243286,0.00029978,2]
[329298897,1718224240084,-500.0,0.00029978,2]
[329298898,1718224240105,-523.92876802,0.00029978,2]
[329298899,1718224240120,-605.07,0.00029978,2]
[329298900,1718224240138,-500.0,0.00029978,2]
[329298901,1718224240157,-500.0,0.00029978,2]
[329298902,1718224240185,-500.0,0.00029978,2]
[329298903,1718224240198,-500.0,0.00029978,2]
[329298904,1718224240237,-526.31200238,0.00029978,2]
[329298905,1718224240264,-500.0,0.00029978,2]
[329298906,1718224240278,-519.95434228,0.00029978,2]
[329298907,1718224240293,-500.0,0.00029978,2]
[329298908,1718224240304,-500.0,0.00029978,2]
[329298909,1718224240323,-159.81262562,0.00029978,2]
[329298910,1718224240335,-304.13103888,0.00029978,2]
[329298911,1718224240347,-256.73673152,0.00029978,2]
[329298912,1718224240372,-500.0,0.00029978,2]
[329298913,1718224240386,-1204.75428974,0.00029979,2]
[329298914,1718224240399,-620.58593424,0.00029979,2]
[329298915,1718224240411,-3537.4516727,0.00029979,2]
[329298916,1718224240422,-3021.6308813,0.00029979,2]
[329298917,1718224240441,-2505.8100898,0.00029979,2]
[329298918,1718224240454,-1989.9892984,0.00029979,2]
[329298919,1718224240476,-1474.168507,0.00029979,2]
[329298920,1718224240504,-805.0095109,0.00029979,2]
[329298921,1718224240522,-687.6253934,0.00029979,2]
[329298922,1718224240540,-570.2412758,0.00029979,2]
[329298923,1718224240574,-452.8571582,0.00029979,2]
[329298924,1718224240609,-335.4730406,0.00029979,2]
[329298925,1718224240621,-3598.3530285,0.00029979,2]
[329298926,1718224240643,-3073.6517806,0.00029979,2]
[329298927,1718224240667,-2548.9505327,0.00029979,2]
[329298928,1718224240680,-2024.2492848,0.00029979,2]
[329298929,1718224240722,-1499.5480369,0.00029979,2]
[329298930,1718224240746,-2059.39637,0.00029979,2]
[329298931,1718224240764,-176.75608764,0.00029988,2]
[329298932,1718224240784,-151.79,0.0002999,2]
[329298933,1718224240805,-151.79,0.0002999,2]
[329298934,1718224240820,-151.79,0.0002999,2]
[329298935,1718224240866,-151.79,0.0002999,2]
[329298936,1718224240881,-151.79,0.0002999,2]
[329298937,1718224240900,-151.79,0.0002999,2]
[329298938,1718224240921,-151.79,0.0002999,2]
[329298939,1718224240947,-151.79,0.0002999,2]
[329298940,1718224240960,-151.79,0.0002999,2]
[329298941,1718224240976,-151.79,0.0002999,2]
[329298942,1718224241010,-151.79,0.0002999,2]
[329298943,1718224241033,-151.79,0.0002999,2]
[329298944,1718224241047,-151.79,0.0002999,2]
[329298945,1718224241072,-201.6,0.00029994,2]
[329298946,1718224241086,-12041.42947659,0.00029997,2]
[329298947,1718224241114,-150.0,0.00029997,2]
[329298948,1718224241166,-274.89751879,0.00029998,2]
[329298949,1718224241189,-1536.87181415,0.00029998,2]
[329298950,1718224241205,-4602.34086269,0.00029998,2]
[329298951,1718224241225,-121594.26770775,0.00029998,2]
[329298952,1718224241256,-201.130873,0.00029998,2]
[329298953,1718224241274,-201.67489333,0.00029998,2]
[329298954,1718224241306,-303.79012188,0.00029998,2]
[329298955,1718224241342,-2370.77689173,0.00029998,2]
[329298956,1718224241368,-282.95218659,0.00029998,2]
[329298957,1718224241382,-10977.35791684,0.00029998,2]
[329298958,1718224241396,-1253.38004593,0.00029998,2]
[329298959,1718224241420,-5581.62144198,0.00029998,2]
[329298960,1718224241432,-268.74584708,0.00029998,2]
[329298961,1718224241443,-155.0,0.00029998,2]
[329298962,1718224241456,-409.04522309,0.00029998,2]
[329298963,1718224241467,-1000.0,0.00029998,2]
[329298964,1718224241479,-156.63359836,0.00029998,2]
[329298965,1718224241665,-287.98703881,0.00029998,2]
[329298966,1718224241700,-223.44815964,0.00029998,2]
[329298967,1718224241724,-719.55136828,0.00029998,2]
[329298968,1718224241736,-173.11449697,0.00029998,2]
[329298969,1718224241762,-155.50315678,0.00029998,2]
[329298970,1718224241790,-160.95528543,0.00029998,2]
[329298971,1718224241823,-155.0,0.00029998,2]
[329298972,1718224241879,-3935.23414799,0.00029998,2]
[329298973,1718224241913,-263.34714062,0.00029998,2]
[329298974,1718224241937,-208.40072468,0.00029998,2]
[329298975,1718224241952,-156.94445572,0.00029998,2]
[329298976,1718224241971,-176.51048241,0.00029998,2]
[329298977,1718224241988,-490.61954782,0.00029998,2]
[329298978,1718224242005,-217.44360157,0.00029998,2]
[329298979,1718224242031,-179.39775421,0.00029998,2]